Cogmind - Beta 13 @@@ ROGUE MODE // 2024.05.16 @ 17:44:30 Player: Toa of Guts Result: Destroyed by 6N-HH9(R) with Subdweller Beam Cannon Performance ------------- Evolutions (0) 0 Regions Visited (2) 400 Robots Destroyed (24) 120 Value Destroyed (599) 599 Prototype IDs (4) 80 Alien Tech Used (0) 0 Bonus (0) 0 TOTAL SCORE: 1199 Bonus ------- None Cogmind --------- Core Integrity 0/250 Matter 285/300 Energy 230/250 System Corruption 0% Temperature Cool (9) Movement Rolling (140) Ox4 Location -10/Subcaves Parts ------- > --- POWER (1) -------- Ion Engine > --- PROPULSION (2) --- Light Treads Wheel > --- UTILITY (2) ------ High-capacity Storage Unit > --- WEAPON (2) ------- EM Pulse Gun Particle Gun > --- INVENTORY (20) --- Ion Engine Ion Engine Light Treads Wheel Compact Wheel Huge Storage Unit Seismic Detector Core Shielding Hacking Suite EM Pulse Gun EM Pulse Gun EM Pulse Gun EM Pulse Gun EM Pulse Gun Grenade Launcher Grenade Launcher Datajack Mining Claw Peak State ------------ > --- POWER ------------ Ion Engine > --- PROPULSION ------- Light Treads Wheel > --- UTILITY ---------- High-capacity Storage Unit Core Shielding > --- WEAPON ----------- Particle Gun Assault Rifle > --- INVENTORY -------- Ion Engine Ion Engine Light Treads Compact Wheel Large Storage Unit Huge Storage Unit Seismic Detector Core Shielding Hacking Suite EM Pulse Gun EM Pulse Gun EM Pulse Gun EM Pulse Gun EM Pulse Gun EM Pulse Gun Grenade Launcher Grenade Launcher Mining Claw [Rating: 10] Favorites ----------- Power Ion Engine Engine Ion Engine Propulsion Aluminum Leg Treads Light Treads Leg Aluminum Leg Wheel Wheel Utility Core Shielding Device Seismic Detector Storage Large Storage Unit Protection Core Shielding Weapon Assault Rifle Energy Gun Medium Laser Ballistic Gun Assault Rifle Launcher Grenade Launcher Slashing Weapon Mining Claw Build | -11 -10 -10 ------- Run | Yrd Mat Sub Slots Evolved . | . . . Power . | . . . Propulsion . | . . . Utility . | . . . Weapon . | . . . Parts Attached 34 | 5 24 5 Power 4 | 1 3 . Engine 4 | 1 3 . Core . | . . . Reactor . | . . . Propulsion 12 | 1 11 . Treads 5 | . 5 . Leg 6 | 1 5 . Wheel 1 | . 1 . Hover . | . . . Flight . | . . . Utility 6 | 1 3 2 Device 1 | . . 1 Storage 3 | 1 2 . Processor . | . . . Hackware . | . . . Protection 2 | . 1 1 Artifact . | . . . Weapon 12 | 2 7 3 Energy Gun 6 | . 4 2 Energy Cannon . | . . . Ballistic Gun 4 | 2 2 . Ballistic Cannon . | . . . Launcher 1 | . 1 . Special Weapon . | . . . Impact Weapon . | . . . Slashing Weapon 1 | . . 1 Piercing Weapon . | . . . Special Melee Weapon . | . . . Unidentified Prototypes . | . . . Parts Lost 4 | . 2 2 Power 1 | . 1 . Propulsion . | . . . Utility 1 | . . 1 Weapon 2 | . 1 1 Highest Loss Streak 1 | . 1 1 To Critical Strikes . | . . . Average Slot Usage (%) 96 | . 95 100 Engine 12 | . 11 14 Treads 6 | . 5 14 Leg 15 | . 17 . Wheel 4 | . 3 14 Storage 14 | . 14 14 Protection 13 | . 13 10 Energy Gun 13 | . 12 16 Ballistic Gun 13 | . 14 11 Naked Turns . | . . . Heaviest Build 51 | 11 51 51 Greatest Support 40 | 10 40 10 Greatest Overweight (x) 5 | 3 5 5 Average Overweight (x) 2 | . 2 5 Largest Inventory Capacity 20 | 8 20 20 Average Capacity 15 | 7 15 20 Most Carried 20 | 7 20 19 Average Carried 14 | 5 13 18 Final Capacity 20 | 8 20 20 Final Carried 19 | 7 19 18 Class Distribution -------------------- 100% | Mutant Dominant Class ---------------- Mutant | -10/Materials Mutant | -10/Subcaves Resources | -11 -10 -10 ----------- Run | Yrd Mat Sub Matter Collected 738 | 175 529 34 Remotely . | . . . Salvage Created 898 | . 804 94 Parts 63 | . 53 10 Haulers Intercepted 2 | . 2 . Recyclers Shooed 3 | . 3 . Parts Field Recycled . | . . . Retrieved Matter . | . . . Parts Self-Destructed 5 | . . 5 Prevented . | . . . Kills | -11 -10 -10 ------- Run | Yrd Mat Sub Combat Hostiles Destroyed 13 | . 11 2 Guns 13 | . 11 2 Classes Destroyed 8 | . 7 1 Builder 3 | . 3 . Tunneler 1 | . 1 . Hauler 2 | . 2 . Recycler 1 | . 1 . Operator 1 | . 1 . Watcher 3 | . 3 . Grunt 11 | . 11 . Subdweller 2 | . . 2 Best Kill Streak 2 | . 2 1 Combat Bots Only 2 | . 2 1 Max Kills in Single Turn 1 | . 1 1 Gunslinging . | . . . Exploded . | . . . Melee . | . . . Uniques/NPCs Destroyed . | . . . Combat | -11 -10 -10 -------- Run | Yrd Mat Sub Hostile Shots Fired 70 | . 62 8 Missed 16 | . 15 1 Damage Taken 978 | . 610 368 Core 261 | . 105 156 Absorbed by Shields . | . . . Redirected to Shielding 53 | . 24 29 Core Remaining (%) 100 | 100 . . Volleys Fired 91 | . 86 5 Largest 2 | . 2 2 Hottest 105 | . 85 105 Shots Fired 176 | . 166 10 Gun 174 | . 164 10 Cannon . | . . . Launcher 2 | . 2 . Special . | . . . Kinetic 87 | . 84 3 Thermal 85 | . 80 5 Explosive 2 | . 2 . Electromagnetic 2 | . . 2 Robot Hit Streak 13 | . 13 3 Robot Miss Streak 3 | . 3 1 Penetration Max . | . . . Secondary Targets 2 | . 2 . Max Gunslinging Chain 1 | . 1 . Shots Hit Robots 122 | . 115 7 Core Hits 43 | . 39 4 Critical Kills . | . . . Critical Parts Destroyed . | . . . Critical Strikes 3 | . 3 . Burn 3 | . 3 . Melee Attacks 1 | . . 1 Impact . | . . . Slashing 1 | . . 1 Piercing . | . . . Sneak Attacks . | . . . Combat Hostiles . | . . . Follow-up Attacks . | . . . Damage Inflicted 1501 | . 1399 102 Guns 1500 | . 1398 102 Cannons . | . . . Explosions 1 | . 1 . Melee . | . . . Ramming . | . . . Kinetic 699 | . 672 27 Thermal 791 | . 726 65 Explosive 1 | . 1 . Electromagnetic 10 | . . 10 Impact . | . . . Slashing . | . . . Piercing . | . . . Highest Corruption . | . . . Average Corruption . | . . . Corruption Purged . | . . . Corruption Blocked . | . . . Overload Shots . | . . . Overflow Damage . | . . . Projectiles . | . . . Explosions . | . . . Melee . | . . . Knockbacks . | . . . Impact . | . . . Kinetic . | . . . Secondary . | . . . Self-Inflicted Damage . | . . . Shots . | . . . Rammed . | . . . Targets Rammed . | . . . Kicked . | . . . Crushed . | . . . Highest Temperature 210 | . 210 . Average Temperature 50 | . 50 . Received Heat Transfer 378 | . 360 18 Siege Activations . | . . . Robots Corrupted . | . . . Combat Hostiles . | . . . Parts Fried . | . . . Impact Corruptions . | . . . Robots Melted . | . . . Combat Hostiles . | . . . Parts Melted 1 | . 1 . Heat Transferred 2442 | . 2294 148 Parts Sabotaged . | . . . Parts Stolen . | . . . Parts Stripped . | . . . Power Chain Reactions . | . . . Alert | -11 -10 -10 ------- Run | Yrd Mat Sub Peak Influence 177 | . 177 . Initial . | . . . Average 31 | . 32 . Maximum Alert Level . | . . . Low Security (%) 100 | 100 100 . Level 1 . | . . . Level 2 . | . . . Level 3 . | . . . Level 4 . | . . . Level 5 . | . . . High Security . | . . . Max Security . | . . . Squads Dispatched 4 | . 4 . Investigation 1 | . 1 . Extermination . | . . . Reinforcement 3 | . 3 . Assault . | . . . Garrison . | . . . Intercept . | . . . Searches Triggered . | . . . Construction Impeded . | . . . Haulers Reinforced . | . . . Active Scanning Responses . | . . . Cargo Convoy Interrupts . | . . . Stealth | -11 -10 -10 --------- Run | Yrd Mat Sub Distress Signals 1 | . 1 . Communications Jammed . | . . . Distress Signals . | . . . Times Spotted 24 | . 21 3 Peak Tracking Total 2 | . 2 1 Tactical Retreats . | . . . Traps | -11 -10 -10 ------- Run | Yrd Mat Sub Traps Triggered 3 | . 3 . Indirectly . | . . . Trap Hack Attempts . | . . . Triggered . | . . . Disarmed . | . . . Reprogrammed . | . . . Reused . | . . . Traps Extracted . | . . . Installed . | . . . Triggered . | . . . Machines | -11 -10 -10 ---------- Run | Yrd Mat Sub Machines Disabled 1 | . 1 . Max in Single Turn 1 | . 1 . Machines Repaired . | . . . Machines Dismantled . | . . . Machines Sabotaged . | . . . Overloaded Fab Kills . | . . . Hacking | -11 -10 -10 --------- Run | Yrd Mat Sub Machines Accessed 6 | . 6 . Terminals 6 | . 6 . Fabricators . | . . . Repair Stations . | . . . Recycling Units . | . . . Scanalyzers . | . . . Garrison Access . | . . . Total Hacks 14 | . 14 . Successful 7 | . 7 . Failed 7 | . 7 . Catastrophic 1 | . 1 . Database Lockouts . | . . . Manual 8 | . 8 . Terminals 14 | . 14 . Fabricators . | . . . Repair Stations . | . . . Recycling Units . | . . . Scanalyzers . | . . . Garrison Access . | . . . Terminal Hacks 5 | . 5 . Prototype ID Bank 3 | . 3 . Alert Level 1 | . 1 . Locate Traps 1 | . 1 . Fabricator Hacks . | . . . Repair Station Hacks . | . . . Recycling Unit Hacks . | . . . Scanalyzer . | . . . Garrison Access Hacks . | . . . Unauthorized Hacks 2 | . 2 . Terminals 2 | . 2 . Botnet 2 | . 2 . Fabricators . | . . . Repair Stations . | . . . Recycling Units . | . . . Scanalyzers . | . . . Garrison Access . | . . . Data Cores Recovered . | . . . Used . | . . . Hacking Detections 6 | . 6 . Full Trace Events 1 | . 1 . Feedback Events . | . . . Feedback Blocked . | . . . Robot Schematics Acquired . | . . . Robots Built . | . . . Authchips . | . . . Time . | . . . Total Robot Build Rating . | . . . Part Schematics Acquired . | . . . Parts Built . | . . . Authchips . | . . . Time . | . . . Total Part Build Rating . | . . . Parts Repaired . | . . . Time . | . . . Parts Recycled . | . . . Recycled Matter . | . . . Retrieved Matter . | . . . Retrieved Components . | . . . Parts Scanalyzed . | . . . Part Schematics Acquired . | . . . Parts Damaged . | . . . Bothacking | -11 -10 -10 ------------ Run | Yrd Mat Sub Used RIF Installer . | . . . Robots Hacked . | . . . Non-combat . | . . . Combat . | . . . Robot Hacks Applied . | . . . Relay Couplers Released . | . . . Fabnet Peak Effective % . | . . . Robots Rewired . | . . . Allies Hacked . | . . . Hacks Repelled . | . . . Allies | -11 -10 -10 -------- Run | Yrd Mat Sub Total Allies . | . . . Largest Group . | . . . Highest-Rated Group . | . . . Highest-Rated Ally . | . . . Total Orders . | . . . Ally Attacks . | . . . Total Damage . | . . . Kills . | . . . Allies Corrupted . | . . . Allies Melted . | . . . Intel | -11 -10 -10 ------- Run | Yrd Mat Sub Robot Analysis Total . | . . . Derelict Logs Recovered . | . . . Drone Launches . | . . . Drone Recoveries . | . . . Exploration | -11 -10 -10 ------------- Run | Yrd Mat Sub Turns Passed 2482 | 72 2129 281 Spaces Moved 1157 | 45 975 137 Core 17 | 17 . . Treads 103 | . 103 . Legs 603 | 28 575 . Wheels 434 | . 297 137 Hover . | . . . Flight . | . . . Fastest Speed 50 | 50 120 155 Average Speed 169 | 131 173 155 Slowest Speed 240 | 200 240 155 Overloaded Moves . | . . . Propulsion Burnouts . | . . . Robots Hopped . | . . . Cave-ins Triggered . | . . . Exploration Rate (%) 37 | 4 99 9 Regions Visited 2 Branch Regions 1 Pre-discovered Areas . | . . . Known Exits Taken . | . . . Unknown Exits Taken 2 | 1 1 . Scrap Searched . | . . . Spaces Dug 7 | . 6 1 Terrain Destroyed 15 | . 14 1 Melee 1 | . . 1 Projectile . | . . . AOE 14 | . 14 . Terrain Rammed . | . . . Walls Destroyed . | . . . Machines Disabled . | . . . Actions | -11 -10 -10 --------- Run | Yrd Mat Sub Total 1498 | 56 1250 192 Wait 171 | . 127 44 Move 1155 | 44 974 137 Hop . | . . . Pick Up 29 | 7 22 . Fast Attach 13 | 5 8 . Attach 3 | . 2 1 Detach . | . . . Swap 18 | . 14 4 Drop 17 | . 17 . Fire 91 | . 86 5 Melee 1 | . . 1 Ram . | . . . Kick . | . . . Crush . | . . . Escape Stasis . | . . . Rewire . | . . . Trap . | . . . Miscellaneous . | . . . Route ------- -11/Scrapyard -10/Materials (discovered 5 exits: [*Mat x3] / [*Min] / [*Sub]) -10/Subcaves History --------- Turn | Location | Event 20 | -11/Scrapyard | Discovered new exit (range 16) 73 | -11/Scrapyard | Entered Materials 318 | -10/Materials | Build established: Mutant 673 | -10/Materials | Discovered new exit (range 4) 1206 | -10/Materials | Discovered new exit (range 15) 1528 | -10/Materials | Discovered new exit (range 6) 1863 | -10/Materials | Discovered new exit (range 9) 1976 | -10/Materials | Discovered new exit (range 7) 2202 | -10/Materials | Entered Subcaves 2423 | -10/Subcaves | Core integrity fell below 50% 2431 | -10/Subcaves | Core integrity fell below 20% 2479 | -10/Subcaves | Ambushed by Subdweller buried in earth 2483 | -10/Subcaves | Destroyed by 6N-HH9(R) with Subdweller Beam Cannon Last Messages --------------- 02132_ U-05 Engineer destroyed. 02133_ Acquired 3 matter. 02142_ K-01 Serf cleans the Nuclear Reactor. 02166_ U-05 Engineer destroyed. 02177_ Acquired Wheel. 02178_ Acquired 6 matter. 02195_ T-07 Excavator is excavating. 02201_ Dropped Lrg. Storage Unit. LOCATION=UNKNOWN AMBIENT_HEAT=-10 GOAL=ESCAPE 02303_ Heat Sink fries itself beyond repair. 02354_ IS-50D(R) destroyed. 02361_ Acquired 23 matter. 02364_ Subatomizers dissect the Sub. Optics. 02428_ Assault Rifle destroyed. 02433_ I7-8BS(R) destroyed. 02444_ Acquired 11 matter. 02480_ 6N-HH9(R): "NOSTUCKSUB!" 02480_ Core Shielding destroyed. Map ----- +----------------------------------------------------+ | ?????????????????????????????????????????# ##### | | ????????????????????????????????????????## ## | | ????????????????????????????????????????# # | | ????????????????????????????????????????# | | ???????????????????????????????????????#" ## | | ????????????????????????????????????? ### | | ????????????????????????????????????# ##?# | | ????????????????????????????????????# #"" #??# | | ??????????????????????????????????? ###" ??# # | | ?????????????????????????????????" ???# ## | | ???????????????????????????????? ????## | | ???????????????????????????????##""??????# | | ????????????????????????????????#?????# # | | ??????????????????????????????????????# # | | ??????????????????????????????????????# #### | | ??????????????????????????????????????### ###??## | | ?????????????????????????????????????#### ???###" | | ?????????????????????????????????????# ### ??## "" | | ????????????????????????????????????## ##?#### "" | | ????????????????????????????######### #### " | | ???????????????????????????## # # ## ### "" | | ???????????????????????????# ####" # | | ??????????????????????????## ]&## | | ?????????????????????????## # &%&## | | ???????????????????????### # #### !&!## | | ???????????????????????# @####### = | | ???????????????????????## R#???# | | ????????????????????????####???# ### | | ???????????????????????????????# # #####?? | | ???????????????????????????????### #?????? | | ?????????????????????????????????# #?????? | | ?????????????????????????????????# #?????? | | ?????????????????????????????????### # ###?????? | | ???????????????????????????????????#######???????? | | ?????????????????????????????????????????????????? | | ?????????????????????????????????????????????????? | | ?????????????????????????????????????????????????? | | ?????????????????????????????????????????????????? | | ?????????????????????????????????????????????????? | | ?????????????????????????????????????????????????? | | ?????????????????????????????????????????????????? | | ?????????????????????????????????????????????????? | | ?????????????????????????????????????????????????? | | ?????????????????????????????????????????????????? | | ?????????????????????????????????????????????????? | | ?????????????????????????????????????????????????? | | | | | | | | | +----------------------------------------------------+ Best States ------------- Heat Dissipation 25 Energy Generation 10 Energy Capacity 250 Matter Stores 300 Matter Capacity 300 Sight Range 16 Terrain Scan Density 10 Core Shielding 20 Evasion (%) 55 Recoil Reduction 2 Item Schematics ----------------- None Robot Schematics ------------------ None Fabricated ------------ Nothing Alien Tech Used ----------------- None Achievements -------------- None Challenges ------------ None Game ------ Seed DynamicCentriumSegregator Manual? 0 Play Time 00:23:54 Cumulative 157.5 hours Start 2024.05.16 @ 17:23:23 End 2024.05.16 @ 17:44:30 Sessions 1 Manual Loads 0 Difficulty Rogue Special Mode None Game No. 98 Rogue 98 Adventurer 0 Explorer 0 Win Type - Total 4 Types 4/0/0/0/0/0/0/0/0 Lore% 46 Gallery% 57 Achievement% 40 Wizard Run 0 Options --------- Layout 0 ASCII 0 Keyboard 0 Movement Numpad Keybinds 0 Fullscreen 1 Font 24/X11 Map View 76x50 Zoom Use 0% Tactical HUD 1 Map Filters NONE Filters NONE Steam 1 RUN: d285be8c-c6ce-4077-95a1-2db719b02ad7